fUSD/lending_fUSD_20260606
["ID","MTS","AMOUNT","RATE_DAILY","PERIOD"]
[424241463,1780690232000,-150.00000001,0.00013488,2]
[424241462,1780690232000,-509.46068284,0.00013479,2]
[424241467,1780690232000,-179.28475902,0.00013504,2]
[424241468,1780690232000,-1424.76986958,0.00013534,2]
[424241469,1780690232000,-781.44564402,0.00013534,2]
[424241434,1780690232000,-4999.99,0.00012301,2]
[424241471,1780690232000,-182.31580193,0.00013534,2]
[424241472,1780690232000,-150.0,0.00013598,2]
[424241474,1780690232000,-276.09681449,0.00013598,2]
[424241473,1780690232000,-1000.0,0.00013598,2]
[424241475,1780690232000,-723.90318551,0.00013598,2]
[424241477,1780690232000,-378.93,0.00013634,2]
[424241479,1780690232000,-166.66,0.00013699,2]
[424241476,1780690232000,-250.0,0.00013598,2]
[424241480,1780690232000,-694.80209424,0.00013729,2]
[424241478,1780690232000,-200.0,0.00013699,2]
[424241460,1780690232000,-208.81996706,0.00013434,2]
[424241466,1780690232000,-1000.0,0.000135,2]
[424241470,1780690232000,-459.9731685,0.00013534,2]
[424241457,1780690232000,-200.01364449,0.00013189,2]
[424241439,1780690232000,-282.73,0.0001239,2]
[424241464,1780690232000,-150.0,0.00013488,2]
[424241437,1780690232000,-1000.0,0.00012347,2]
[424241438,1780690232000,-230.97,0.00012347,2]
[424241440,1780690232000,-1745.89,0.00012447,2]
[424241443,1780690232000,-218.73,0.00012477,2]
[424241445,1780690232000,-2339.16,0.00012518,2]
[424241444,1780690232000,-563.63,0.00012518,2]
[424241446,1780690232000,-150.0,0.00012702,2]
[424241442,1780690232000,-381.5,0.00012453,2]
[424241454,1780690232000,-804.63443102,0.00012799,2]
[424241450,1780690232000,-653.18165529,0.00012748,2]
[424241451,1780690232000,-381.5,0.00012756,2]
[424241452,1780690232000,-166.67,0.00012761,2]
[424241448,1780690232000,-2000.0,0.00012713,2]
[424241465,1780690232000,-150.0,0.00013488,2]
[424241453,1780690232000,-946.93950743,0.00012799,2]
[424241456,1780690232000,-381.5,0.0001306,2]
[424241455,1780690232000,-768.70127735,0.00012799,2]
[424241498,1780690233000,-500.0,0.00013978,2]
[424241493,1780690233000,-500.0,0.00013978,2]
[424241494,1780690233000,-500.0,0.00013978,2]
[424241501,1780690233000,-500.0,0.00013978,2]
[424241500,1780690233000,-500.0,0.00013978,2]
[424241495,1780690233000,-500.0,0.00013978,2]
[424241497,1780690233000,-500.0,0.00013978,2]
[424241492,1780690233000,-500.0,0.00013978,2]
[424241491,1780690233000,-500.0,0.00013978,2]
[424241496,1780690233000,-500.0,0.00013978,2]
[424241489,1780690233000,-166.66,0.00013973,2]
[424241487,1780690233000,-179.28475899,0.00013853,2]
[424241486,1780690233000,-166.66,0.00013836,2]
[424241485,1780690233000,-166.67,0.00013814,2]
[424241482,1780690233000,-1165.7542,0.00013729,2]
[424241483,1780690233000,-804.72037065,0.00013729,2]
[424241484,1780690233000,-500.0,0.00013753,2]
[424241490,1780690233000,-500.0,0.00013978,2]
[424241488,1780690233000,-2666.18868204,0.00013924,2]
[424241481,1780690233000,-0.91201715,0.00013729,2]
[424241502,1780690233000,-500.0,0.00013978,2]
[424241499,1780690233000,-500.0,0.00013978,2]
[424241503,1780690233000,-500.0,0.00013978,2]
[424241511,1780690233000,-2666.18868204,0.00014119,2]
[424241509,1780690233000,-500.0,0.00014049,2]
[424241528,1780690233000,-1302.78085094,0.00014497,2]
[424241527,1780690233000,-2000.0,0.00014497,2]
[424241525,1780690233000,-16102.46562037,0.00014497,2]
[424241524,1780690233000,-2392.63152663,0.00014497,2]
[424241523,1780690233000,-2235.71226808,0.00014497,2]
[424241522,1780690233000,-7775.53148847,0.00014497,2]
[424241521,1780690233000,-150.0,0.00014487,2]
[424241520,1780690233000,-169.688227,0.00014438,2]
[424241519,1780690233000,-433.0,0.00014398,2]
[424241517,1780690233000,-2666.18868204,0.00014315,2]
[424241526,1780690233000,-4750.29169645,0.00014497,2]
[424241516,1780690233000,-2000.0,0.00014303,2]
[424241518,1780690233000,-166.66,0.00014384,2]
[424241510,1780690233000,-166.66,0.0001411,2]
[424241507,1780690233000,-150.0,0.00013987,2]
[424241508,1780690233000,-250.0,0.00014,2]
[424241505,1780690233000,-240.0,0.00013978,2]
[424241504,1780690233000,-500.0,0.00013978,2]
[424241512,1780690233000,-179.28475899,0.00014202,2]
[424241513,1780690233000,-150.0,0.00014237,2]
[424241506,1780690233000,-150.0,0.00013978,2]
[424241514,1780690233000,-215.77576141,0.00014242,2]
[424241515,1780690233000,-166.66,0.00014247,2]
[424241534,1780690238000,-350.0,0.00014504,2]
[424241536,1780690238000,-179.28475899,0.00014551,2]
[424241532,1780690238000,-7100.32384906,0.00014497,2]
[424241533,1780690238000,-2000.0,0.000145,2]
[424241535,1780690238000,-2666.18868204,0.0001451,2]
[424241538,1780690238000,-590.32710783,0.00014581,2]
[424241539,1780690238000,-657.87343808,0.00014581,2]
[424241537,1780690238000,-5609.07868074,0.00014581,2]
[424241570,1780690241000,-485.35072837,0.00014581,2]
[424241565,1780690241000,-671.04973647,0.00014581,2]
[424241552,1780690241000,-518.04336001,0.00014581,2]
[424241549,1780690241000,-2214.71238702,0.00014581,2]
[424241548,1780690241000,-3044.62306403,0.00014581,2]
[424241567,1780690241000,-525.12583418,0.00014581,2]
[424241586,1780690242000,-1390.83110386,0.00014581,2]
[424241584,1780690242000,-1575.50064275,0.00014581,2]
[424241585,1780690242000,-51365.75254063,0.00014581,2]
[424241592,1780690243000,-6047.4,0.00014581,2]
[424241608,1780690246000,-2134.19094943,0.00014581,2]
[424241609,1780690246000,-1549.91855015,0.00014581,2]
[424241612,1780690257000,500.0,0.00030136,120]
[424241613,1780690259000,200.0,5e-05,30]
[424241614,1780690268000,31585.92951,7.945e-05,2]
[424241615,1780690533000,500.0,0.00030137,120]
[424241616,1780690543000,500.0,0.00030137,120]
[424241617,1780690598000,500.0,0.00030137,120]
[424241618,1780690619000,500.0,0.00030137,120]
[424241619,1780690696000,500.0,0.00030137,120]
[424241620,1780690705000,500.0,0.00030137,120]
[424241622,1780690759000,175.26703918,8e-05,2]
[424241623,1780690759000,158.54478925,8e-05,2]
[424241625,1780690759000,223.41987143,8e-05,2]
[424241624,1780690759000,205.423467,8e-05,2]
[424241630,1780690759000,181.67269453,8e-05,2]
[424241628,1780690759000,250.37775007,8e-05,2]
[424241621,1780690759000,232.9,8e-05,2]
[424241627,1780690759000,156.40240843,8e-05,2]
[424241629,1780690759000,154.98,8e-05,2]
[424241631,1780690759000,156.4034983,8e-05,2]
[424241632,1780690759000,277.3457899,8e-05,2]
[424241633,1780690759000,471.92827469,8e-05,2]
[424241634,1780690759000,3533.33040146,8e-05,2]
[424241635,1780690759000,1255.22506475,8e-05,2]
[424241626,1780690759000,276.58012857,8e-05,2]
[424241640,1780691053000,176.87,8.664e-05,2]
[424241664,1780691341000,2000.0,0.00030136,120]
[424241706,1780691432000,-209.68565228,0.00010541,2]
[424241710,1780691432000,-200.0,0.00010542,2]
[424241705,1780691432000,-500.0,0.00010541,2]
[424241702,1780691432000,-500.0,0.00010541,2]
[424241713,1780691432000,-299.99,0.00010577,2]
[424241707,1780691432000,-500.0,0.00010541,2]
[424241703,1780691432000,-500.0,0.00010541,2]
[424241698,1780691432000,-257.0,0.00010372,2]
[424241708,1780691432000,-615.70918782,0.00010541,2]
[424241701,1780691432000,-500.0,0.00010541,2]
[424241697,1780691432000,-1000.0,0.0001029,2]
[424241700,1780691432000,-257.0,0.00010474,2]
[424241696,1780691432000,-150.0,0.00010269,2]
[424241694,1780691432000,-150.0,9.961e-05,2]
[424241695,1780691432000,-362.71289494,0.00010115,2]
[424241699,1780691432000,-6384.226182,0.00010421,2]
[424241712,1780691432000,-9999.99,0.00010577,2]
[424241721,1780691432000,-24999.99,0.00010641,2]
[424241704,1780691432000,-500.0,0.00010541,2]
[424241709,1780691432000,-1852.42,0.00010542,2]
[424241728,1780691432000,-5713.95381473,0.000107,2]
[424241727,1780691432000,-6701.57857996,0.000107,2]
[424241726,1780691432000,-10986.77275764,0.000107,2]
[424241722,1780691432000,-4999.99,0.00010641,2]
[424241724,1780691432000,-257.0,0.0001068,2]
[424241718,1780691432000,-1000.0,0.0001064,2]
[424241720,1780691432000,-15867.14,0.00010641,2]
[424241725,1780691432000,-34527.38547347,0.000107,2]
[424241715,1780691432000,-9999.99,0.00010587,2]
[424241717,1780691432000,-150.0,0.0001064,2]
[424241711,1780691432000,-257.0,0.00010577,2]
[424241723,1780691432000,-9999.99,0.00010641,2]
[424241714,1780691432000,-999.99,0.00010587,2]
[424241716,1780691432000,-150.99,0.00010587,2]
[424241719,1780691432000,-150.0,0.00010641,2]
[424241769,1780691440000,-2171.74000001,0.000107,2]
[424241770,1780691440000,-2987.65900565,0.000107,2]
[424241771,1780691440000,-702.14432026,0.000107,2]
[424241768,1780691440000,-2499.2819,0.000107,2]
[424241772,1780691441000,-1423.79999999,0.000107,2]
[424241821,1780691446000,-500.0,0.00010576,2]
[424241820,1780691446000,-291.87115434,0.00010576,2]
[424241819,1780691446000,-213.96188363,0.00010576,2]
[424241822,1780691446000,-500.0,0.00010576,2]
[424241828,1780691446000,-328.81120309,0.000107,2]
[424241825,1780691446000,-468.73794335,0.000107,2]
[424241826,1780691446000,-4668.00000033,0.000107,2]
[424241823,1780691446000,-558.59749416,0.00010576,2]
[424241824,1780691446000,-611.53818222,0.00010576,2]
[424241827,1780691446000,-1581.90000001,0.000107,2]
[424241836,1780691951000,598.38,0.00030082,120]
[424242006,1780692344000,-155.0,9.527e-05,2]
[424241999,1780692344000,-355.45863704,9.161e-05,2]
[424241998,1780692344000,-150.0,9.091e-05,2]
[424242001,1780692344000,-175.6,9.272e-05,2]
[424242000,1780692344000,-155.0,9.253e-05,2]
[424242002,1780692344000,-155.0,9.344e-05,2]
[424242003,1780692344000,-150.0,9.372e-05,2]
[424242005,1780692344000,-2000.0,9.448e-05,2]
[424242004,1780692344000,-155.0,9.436e-05,2]
[424242007,1780692344000,-155.0,9.619e-05,2]
[424242019,1780692344000,-13175.57150897,9.719e-05,2]
[424242010,1780692344000,-155.0,9.711e-05,2]
[424242008,1780692344000,-150.0,9.662e-05,2]
[424242012,1780692344000,-204.30980804,9.718e-05,2]
[424242014,1780692344000,-500.0,9.718e-05,2]
[424242011,1780692344000,-189.96507248,9.717e-05,2]
[424242013,1780692344000,-500.0,9.718e-05,2]
[424242015,1780692344000,-241.01824591,9.718e-05,2]
[424242016,1780692344000,-428.07672756,9.718e-05,2]
[424242018,1780692344000,-200.0,9.719e-05,2]
[424242017,1780692344000,-150.0,9.718e-05,2]
[424242009,1780692344000,-500.0,9.68e-05,2]
[424242021,1780692387000,-500.0,9.717e-05,2]
[424242020,1780692387000,-150.0,8.818e-05,2]
[424242023,1780692387000,-322.74076882,9.717e-05,2]
[424242025,1780692387000,-155.08769312,9.717e-05,2]
[424242024,1780692387000,-372.17153806,9.717e-05,2]
[424242022,1780692387000,-500.0,9.717e-05,2]
[424242030,1780692397000,-300.0,9.717e-05,2]
[424242027,1780692397000,-500.0,9.717e-05,2]
[424242026,1780692397000,-344.91230688,9.717e-05,2]
[424242028,1780692397000,-500.0,9.717e-05,2]
[424242031,1780692397000,-258.84849103,9.719e-05,2]
[424242029,1780692397000,-500.0,9.717e-05,2]
[424242034,1780692397000,-348.3494643,9.76e-05,2]
[424242035,1780692397000,-155.0,9.802e-05,2]
[424242033,1780692397000,-150.99,9.719e-05,2]
[424242038,1780692397000,-209.33973779,0.0001,2]
[424242037,1780692397000,-155.0,9.985e-05,2]
[424242036,1780692397000,-155.0,9.894e-05,2]
[424242032,1780692397000,-422.56,9.719e-05,2]
[424242041,1780692541000,2000.0,0.00030135,120]
[424242043,1780692591000,-150.0,9.7e-05,2]
[424242044,1780692591000,-500.0,9.716e-05,2]
[424242045,1780692591000,-500.0,9.716e-05,2]
[424242046,1780692591000,-500.0,9.716e-05,2]
[424242050,1780692591000,-500.0,9.716e-05,2]
[424242047,1780692591000,-500.0,9.716e-05,2]
[424242049,1780692591000,-580.0,9.716e-05,2]
[424242051,1780692591000,-276.10790389,9.716e-05,2]
[424242052,1780692591000,-223.89209611,9.716e-05,2]
[424242053,1780692591000,-500.0,9.716e-05,2]
[424242054,1780692591000,-119.15381149,9.716e-05,2]
[424242048,1780692591000,-500.0,9.716e-05,2]
[424242077,1780692631000,-547.13223735,0.00010641,2]
[424242075,1780692631000,-150.0,0.00010641,2]
[424242076,1780692631000,-500.0,0.00010641,2]
[424242072,1780692631000,-156.0,9.812e-05,2]
[424242071,1780692631000,-500.0,9.716e-05,2]
[424242080,1780692631000,-231.7184236,0.00010642,2]
[424242069,1780692631000,-2892.2111533,9.648e-05,2]
[424242079,1780692631000,-86837.0928879,0.00010642,2]
[424242078,1780692631000,-87906.5218432,0.00010642,2]
[424242070,1780692631000,-380.84618851,9.716e-05,2]
[424242081,1780692631000,-5968.0532199,0.00010642,2]
[424242074,1780692631000,-2000.0,0.0001063,2]
[424242083,1780692631000,-1908.942189,0.00010642,2]
[424242073,1780692631000,-500.0,0.00010466,2]
[424242084,1780692631000,-146.91144443,0.000107,2]
[424242082,1780692631000,-387.4796376,0.00010642,2]
[424242096,1780692631000,-151.0,0.000107,2]
[424242095,1780692631000,-151.0,0.000107,2]
[424242093,1780692631000,-151.0,0.000107,2]
[424242092,1780692631000,-151.0,0.000107,2]
[424242090,1780692631000,-151.0,0.000107,2]
[424242094,1780692631000,-151.0,0.000107,2]
[424242087,1780692631000,-152.0,0.000107,2]
[424242089,1780692631000,-152.0,0.000107,2]
[424242088,1780692631000,-152.0,0.000107,2]
[424242085,1780692631000,-2284.32511022,0.000107,2]
[424242086,1780692631000,-152.0,0.000107,2]
[424242091,1780692631000,-151.0,0.000107,2]
[424242138,1780692632000,-6284.08999515,0.00011612,2]
[424242137,1780692632000,-3862.2699966,0.0001151,2]
[424242130,1780692632000,-819.648392,0.00011301,2]
[424242136,1780692632000,-151.0,0.00011301,2]
[424242133,1780692632000,-819.648392,0.00011301,2]
[424242129,1780692632000,-263.364272,0.00011301,2]
[424242134,1780692632000,-151.0,0.00011301,2]
[424242135,1780692632000,-151.0,0.00011301,2]
[424242131,1780692632000,-819.648392,0.00011301,2]
[424242139,1780692632000,-2000.0,0.00011811,2]
[424242128,1780692632000,-151.0,0.00011301,2]
[424242132,1780692632000,-819.648392,0.00011301,2]
[424242150,1780692632000,-598.38,0.00012329,2]
[424242143,1780692632000,-6284.08999515,0.00012023,2]
[424242151,1780692632000,-150.52055041,0.00012329,2]
[424242141,1780692632000,-3862.2699966,0.00011995,2]
[424242146,1780692632000,-215.77576141,0.00012243,2]
[424242145,1780692632000,-982.01882072,0.00012097,2]
[424242144,1780692632000,-166.66,0.00012035,2]
[424242148,1780692632000,-160.0,0.00012251,2]
[424242140,1780692632000,-154.81,0.00011837,2]
[424242142,1780692632000,-152.0,0.00012008,2]
[424242152,1780692632000,-490.61119913,0.00012331,2]
[424242155,1780692632000,-3862.2699966,0.00012479,2]
[424242154,1780692632000,-6284.08999515,0.00012434,2]
[424242127,1780692632000,-151.0,0.00011301,2]
[424242149,1780692632000,-348.05,0.00012261,2]
[424242123,1780692632000,-181.269916,0.00011301,2]
[424242104,1780692632000,-1548.0,0.000107,2]
[424242125,1780692632000,-151.0,0.00011301,2]
[424242097,1780692632000,-151.0,0.000107,2]
[424242101,1780692632000,-1548.0,0.000107,2]
[424242100,1780692632000,-151.0,0.000107,2]
[424242098,1780692632000,-151.0,0.000107,2]
[424242099,1780692632000,-151.0,0.000107,2]
[424242156,1780692632000,-594.83208457,0.00012592,2]
[424242103,1780692632000,-1548.0,0.000107,2]
[424242102,1780692632000,-1548.0,0.000107,2]
[424242106,1780692632000,-1548.0,0.000107,2]
[424242105,1780692632000,-1548.0,0.000107,2]
[424242107,1780692632000,-1548.0,0.000107,2]
[424242111,1780692632000,-3862.26999664,0.00011099,2]
[424242108,1780692632000,-1548.0,0.000107,2]
[424242110,1780692632000,-150.0,0.00010959,2]
[424242109,1780692632000,-1548.0,0.000107,2]
[424242112,1780692632000,-3862.2699966,0.00011099,2]
[424242114,1780692632000,-150.99,0.00011118,2]
[424242113,1780692632000,-166.66,0.00011118,2]
[424242115,1780692632000,-6284.08999523,0.00011201,2]
[424242116,1780692632000,-151.0,0.00011298,2]
[424242118,1780692632000,-64950.94711379,0.00011301,2]
[424242120,1780692632000,-151.0,0.00011301,2]
[424242124,1780692632000,-151.0,0.00011301,2]
[424242119,1780692632000,-67188.36171266,0.00011301,2]
[424242121,1780692632000,-151.0,0.00011301,2]
[424242117,1780692632000,-151.0,0.00011298,2]
[424242122,1780692632000,-151.0,0.00011301,2]
[424242126,1780692632000,-151.0,0.00011301,2]
[424242157,1780692632000,-166.67,0.00012638,2]
[424242147,1780692632000,-159.1,0.00012246,2]
[424242158,1780692632000,-1548.0,0.00012708,2]
[424242198,1780692632000,-149.61283374,0.00013511,2]
[424242190,1780692632000,-150.0,0.00013488,2]
[424242201,1780692632000,-150.0,0.00013536,2]
[424242197,1780692632000,-1.38716626,0.00013511,2]
[424242199,1780692632000,-181.16233663,0.00013511,2]
[424242191,1780692632000,-500.0,0.00013501,2]
[424242200,1780692632000,-150.0,0.0001352,2]
[424242193,1780692632000,-500.0,0.00013501,2]
[424242194,1780692632000,-500.0,0.00013501,2]
[424242192,1780692632000,-500.0,0.00013501,2]
[424242196,1780692632000,-1548.0,0.00013511,2]
[424242195,1780692632000,-150.0,0.00013504,2]
[424242202,1780692632000,-150.0,0.00013543,2]
[424242204,1780692632000,-150.0,0.00013568,2]
[424242205,1780692632000,-150.0,0.00013581,2]
[424242207,1780692632000,-388.338651,0.00013585,2]
[424242206,1780692632000,-150.0,0.00013584,2]
[424242212,1780692632000,-150.0,0.00013649,2]
[424242213,1780692632000,-150.0,0.00013654,2]
[424242209,1780692632000,-150.0,0.000136,2]
[424242203,1780692632000,-150.0,0.00013552,2]
[424242211,1780692632000,-150.0,0.00013633,2]
[424242208,1780692632000,-150.0,0.00013599,2]
[424242210,1780692632000,-150.0,0.00013617,2]
[424242215,1780692632000,-150.0,0.00013665,2]
[424242216,1780692632000,-150.0,0.00013675,2]
[424242164,1780692632000,-6284.08999515,0.00012845,2]
[424242185,1780692632000,-150.0,0.00013488,2]
[424242182,1780692632000,-150.0,0.00013488,2]
[424242214,1780692632000,-150.0,0.00013654,2]
[424242178,1780692632000,-151.0,0.00013447,2]
[424242179,1780692632000,-151.0,0.00013447,2]
[424242162,1780692632000,-186.47954845,0.00012772,2]
[424242153,1780692632000,-154.81,0.00012429,2]
[424242159,1780692632000,-152.0,0.00012708,2]
[424242163,1780692632000,-202.45409884,0.00012772,2]
[424242160,1780692632000,-152.0,0.00012708,2]
[424242166,1780692632000,-166.66,0.00012953,2]
[424242175,1780692632000,-819.648392,0.00013447,2]
[424242174,1780692632000,-819.648392,0.00013447,2]
[424242168,1780692632000,-2000.0,0.00012992,2]
[424242165,1780692632000,-2272.09107393,0.00012898,2]
[424242176,1780692632000,-819.648392,0.00013447,2]
[424242167,1780692632000,-3862.2699966,0.00012963,2]
[424242161,1780692632000,-152.0,0.00012708,2]
[424242172,1780692632000,-151.0,0.00013315,2]
[424242169,1780692632000,-154.81,0.00013021,2]
[424242183,1780692632000,-255.83575464,0.00013488,2]
[424242186,1780692632000,-150.0,0.00013488,2]
[424242181,1780692632000,-3862.2699966,0.00013447,2]
[424242188,1780692632000,-150.0,0.00013488,2]
[424242187,1780692632000,-150.0,0.00013488,2]
[424242184,1780692632000,-150.0,0.00013488,2]
[424242180,1780692632000,-151.0,0.00013447,2]
[424242177,1780692632000,-819.648392,0.00013447,2]
[424242171,1780692632000,-151.0,0.00013315,2]
[424242173,1780692632000,-202.45409884,0.00013381,2]
[424242170,1780692632000,-151.0,0.00013315,2]
[424242189,1780692632000,-150.0,0.00013488,2]
[424242255,1780692633000,-528.04969536,0.00013699,2]
[424242260,1780692633000,-500.0,0.00013699,2]
[424242254,1780692633000,-500.0,0.00013699,2]
[424242256,1780692633000,-500.0,0.00013699,2]
[424242243,1780692633000,-151.0,0.00013699,2]
[424242253,1780692633000,-500.0,0.00013699,2]
[424242252,1780692633000,-500.0,0.00013699,2]
[424242251,1780692633000,-500.0,0.00013699,2]
[424242245,1780692633000,-166.66,0.00013699,2]
[424242259,1780692633000,-500.0,0.00013699,2]
[424242247,1780692633000,-198.43026476,0.00013699,10]
[424242257,1780692633000,-500.0,0.00013699,2]
[424242262,1780692633000,-150.0,0.00013713,2]
[424242264,1780692633000,-151.0,0.00013729,2]
[424242258,1780692633000,-500.0,0.00013699,2]
[424242263,1780692633000,-151.0,0.00013729,2]
[424242274,1780692633000,-151.0,0.00013778,2]
[424242265,1780692633000,-151.0,0.00013729,2]
[424242266,1780692633000,-151.0,0.00013729,2]
[424242268,1780692633000,-150.0,0.00013737,2]
[424242267,1780692633000,-150.0,0.00013729,2]
[424242273,1780692633000,-150.0,0.00013778,2]
[424242270,1780692633000,-150.0,0.00013762,2]
[424242272,1780692633000,-150.0,0.00013769,2]
[424242269,1780692633000,-150.0,0.00013746,2]
[424242246,1780692633000,-200.0,0.00013699,2]
[424242271,1780692633000,-150.0,0.00013765,2]
[424242261,1780692633000,-150.0,0.0001371,2]
[424242244,1780692633000,-152.346654,0.00013699,2]
[424242228,1780692633000,-500.0,0.00013698,2]
[424242248,1780692633000,-151.0,0.00013699,2]
[424242279,1780692633000,-150.0,0.00013821,2]
[424242222,1780692633000,-500.0,0.00013698,2]
[424242223,1780692633000,-500.0,0.00013698,2]
[424242221,1780692633000,-500.0,0.00013698,2]
[424242217,1780692633000,-150.0,0.00013681,2]
[424242224,1780692633000,-500.0,0.00013698,2]
[424242225,1780692633000,-500.0,0.00013698,2]
[424242218,1780692633000,-150.0,0.00013697,2]
[424242219,1780692633000,-500.0,0.00013698,2]
[424242220,1780692633000,-500.0,0.00013698,2]
[424242227,1780692633000,-500.0,0.00013698,2]
[424242226,1780692633000,-188.1578113,0.00013698,2]
[424242234,1780692633000,-500.0,0.00013698,2]
[424242233,1780692633000,-500.0,0.00013698,2]
[424242236,1780692633000,-500.0,0.00013698,2]
[424242237,1780692633000,-154.330341,0.00013698,2]
[424242230,1780692633000,-500.0,0.00013698,2]
[424242232,1780692633000,-500.0,0.00013698,2]
[424242235,1780692633000,-500.0,0.00013698,2]
[424242229,1780692633000,-500.0,0.00013698,2]
[424242231,1780692633000,-500.0,0.00013698,2]
[424242239,1780692633000,-500.0,0.00013698,2]
[424242249,1780692633000,-212.96328853,0.00013699,2]
[424242250,1780692633000,-500.0,0.00013699,2]
[424242240,1780692633000,-500.0,0.00013698,2]
[424242238,1780692633000,-500.0,0.00013698,2]
[424242241,1780692633000,-509.49,0.00013699,2]
[424242242,1780692633000,-151.0,0.00013699,2]
[424242280,1780692633000,-150.0,0.00013826,2]
[424242327,1780692633000,-1548.0,0.00014113,2]
[424242284,1780692633000,-150.0,0.00013858,2]
[424242309,1780692633000,-202.45409884,0.00013989,2]
[424242312,1780692633000,-150.0,0.00014019,2]
[424242316,1780692633000,-150.0,0.00014052,2]
[424242324,1780692633000,-300.0,0.000141,5]
[424242314,1780692633000,-150.0,0.00014043,2]
[424242315,1780692633000,-150.0,0.0001405,2]
[424242313,1780692633000,-150.0,0.00014036,2]
[424242317,1780692633000,-150.0,0.00014068,2]
[424242319,1780692633000,-500.0,0.00014077,2]
[424242322,1780692633000,-333.67,0.00014091,2]
[424242321,1780692633000,-150.0,0.00014084,2]
[424242323,1780692633000,-150.0,0.00014098,2]
[424242318,1780692633000,-500.0,0.00014077,2]
[424242326,1780692633000,-166.66,0.0001411,2]
[424242337,1780692633000,-2000.0,0.00014173,2]
[424242328,1780692633000,-152.0,0.00014113,2]
[424242336,1780692633000,-150.0,0.00014164,2]
[424242325,1780692633000,-150.0,0.000141,2]
[424242331,1780692633000,-150.0,0.00014143,2]
[424242334,1780692633000,-150.0,0.00014154,2]
[424242335,1780692633000,-151.0,0.00014164,2]
[424242330,1780692633000,-150.0,0.00014132,2]
[424242333,1780692633000,-150.0,0.00014154,2]
[424242329,1780692633000,-150.0,0.00014116,2]
[424242332,1780692633000,-150.0,0.00014148,2]
[424242282,1780692633000,-166.66,0.00013836,2]
[424242338,1780692633000,-150.0,0.00014181,2]
[424242311,1780692633000,-150.0,0.00014003,2]
[424242310,1780692633000,-250.0,0.00014,2]
[424242320,1780692633000,-350.0,0.00014082,2]
[424242306,1780692633000,-150.0,0.00013987,2]
[424242281,1780692633000,-2892.2111533,0.00013829,2]
[424242283,1780692633000,-150.0,0.00013842,2]
[424242308,1780692633000,-150.0,0.00013987,2]
[424242285,1780692633000,-150.0,0.00013862,2]
[424242286,1780692633000,-150.0,0.00013862,2]
[424242278,1780692633000,-150.0,0.00013821,2]
[424242277,1780692633000,-150.0,0.0001381,2]
[424242276,1780692633000,-150.0,0.00013794,2]
[424242275,1780692633000,-2765.8639884,0.00013781,2]
[424242287,1780692633000,-150.0,0.00013874,2]
[424242288,1780692633000,-150.0,0.00013876,2]
[424242298,1780692633000,-150.0,0.00013956,2]
[424242289,1780692633000,-150.0,0.00013891,2]
[424242297,1780692633000,-150.0,0.00013955,2]
[424242290,1780692633000,-3387.0,0.00013906,5]
[424242301,1780692633000,-169.62,0.00013959,2]
[424242291,1780692633000,-150.0,0.00013907,2]
[424242295,1780692633000,-150.0,0.00013932,2]
[424242293,1780692633000,-3395.0,0.00013931,5]
[424242305,1780692633000,-150.0,0.00013987,2]
[424242292,1780692633000,-150.0,0.00013923,2]